[Event "Titled Tuesday Blitz July 05 Late 2022"]
[White "Hansen, Eric"]
[Black "Salem, A.R. Saleh"]
[WhiteFideId "2606771"]
[BlackFideId "9301348"]
[WhiteElo "2568"]
[BlackElo "2679"]
[Result "0-1"]
[Round "09"]
[TimeControl "180+1"]
[Date "2022.07.05"]
[WhiteClock "0:00:44"]
[BlackClock "0:01:32"]

1. e4 {[%clk 0:02:57]}  c5 {[%clk 0:03:00]} 2. Nf3 {[%clk 0:02:57]}  d6 {[%clk 0:03:00]} 3. d4 {[%clk 0:02:58]}  cxd4 {[%clk 0:03:00]} 4. Nxd4 {[%clk 0:02:59]}  Nf6 {[%clk 0:03:01]} 5. Nc3 {[%clk 0:02:59]}  a6 {[%clk 0:03:01]} 6. Be3 {[%clk 0:02:58]}  Ng4 {[%clk 0:03:01]} 7. Bc1 {[%clk 0:02:58]}  Nf6 {[%clk 0:03:02]} 8. h3 {[%clk 0:02:57]}  e6 {[%clk 0:03:02]} 9. g4 {[%clk 0:02:55]}  Be7 {[%clk 0:03:03]} 10. g5 {[%clk 0:02:54]}  Nfd7 {[%clk 0:03:03]} 11. Be3 {[%clk 0:02:54]}  b5 {[%clk 0:03:04]} 12. a3 {[%clk 0:02:55]}  Bb7 {[%clk 0:03:04]} 13. Qd2 {[%clk 0:02:45]}  Nc6 {[%clk 0:03:04]} 14. Nxc6 {[%clk 0:02:27]}  Bxc6 {[%clk 0:03:04]} 15. f4 {[%clk 0:02:24]}  O-O {[%clk 0:03:03]} 16. Bg2 {[%clk 0:02:17]}  a5 {[%clk 0:03:00]} 17. O-O {[%clk 0:02:14]}  b4 {[%clk 0:02:58]} 18. Ne2 {[%clk 0:02:14]}  Nc5 {[%clk 0:02:55]} 19. Ng3 {[%clk 0:02:13]}  Qb6 {[%clk 0:02:46]} 20. axb4 {[%clk 0:02:12]}  axb4 {[%clk 0:02:44]} 21. b3 {[%clk 0:02:12]}  Qb7 {[%clk 0:02:44]} 22. Qd4 {[%clk 0:02:10]}  g6 {[%clk 0:02:21]} 23. Rxa8 {[%clk 0:01:57]}  Rxa8 {[%clk 0:02:20]} 24. Rd1 {[%clk 0:01:58]}  Ra2 {[%clk 0:02:03]} 25. Rd2 {[%clk 0:01:48]}  e5 {[%clk 0:01:59]} 26. fxe5 {[%clk 0:01:48]}  Ne6 {[%clk 0:01:59]} 27. Qc4 {[%clk 0:01:49]}  dxe5 {[%clk 0:01:55]} 28. Nf5 {[%clk 0:00:56]}  Ra1+ {[%clk 0:01:45]} 29. Kh2 {[%clk 0:00:54]}  gxf5 {[%clk 0:01:35]} 30. exf5 {[%clk 0:00:54]}  Bxg2 {[%clk 0:01:36]} 31. fxe6 {[%clk 0:00:44]}  Rh1+ {[%clk 0:01:32]} 0-1


[Site "https://www.chess.com"]

[Event "Titled Tuesday Blitz July 05 Late 2022"]
[White "Janturin, Artur"]
[Black "Bobadilla Viera, Jorge Samuel"]
[WhiteFideId "4130022"]
[BlackFideId "3906353"]
[WhiteElo "2406"]
[BlackElo "2202"]
[Result "0-1"]
[Round "09"]
[TimeControl "180+1"]
[Date "2022.07.06"]
[WhiteClock "0:00:11"]
[BlackClock "0:00:54"]

1. b3 {[%clk 0:02:01]}  e5 {[%clk 0:02:57]} 2. Bb2 {[%clk 0:02:02]}  Nc6 {[%clk 0:02:57]} 3. e3 {[%clk 0:02:02]}  d5 {[%clk 0:02:57]} 4. Bb5 {[%clk 0:02:02]}  Bd6 {[%clk 0:02:57]} 5. f4 {[%clk 0:02:01]}  Qh4+ {[%clk 0:02:57]} 6. g3 {[%clk 0:02:01]}  Qe7 {[%clk 0:02:57]} 7. Nf3 {[%clk 0:02:01]}  f6 {[%clk 0:02:56]} 8. Nc3 {[%clk 0:02:01]}  Be6 {[%clk 0:02:50]} 9. f5 {[%clk 0:01:44]}  Bxf5 {[%clk 0:02:43]} 10. Nxd5 {[%clk 0:01:43]}  Qf7 {[%clk 0:02:38]} 11. Bc4 {[%clk 0:01:20]}  Be6 {[%clk 0:02:25]} 12. e4 {[%clk 0:01:20]}  Nh6 {[%clk 0:02:22]} 13. O-O {[%clk 0:01:19]}  O-O {[%clk 0:02:21]} 14. Ng5 {[%clk 0:01:19]}  fxg5 {[%clk 0:02:20]} 15. Rxf7 {[%clk 0:01:18]}  Bxf7 {[%clk 0:02:19]} 16. Ne3 {[%clk 0:00:56]}  Bc5 {[%clk 0:02:15]} 17. Kg2 {[%clk 0:00:52]}  Rad8 {[%clk 0:02:11]} 18. Qe2 {[%clk 0:00:51]}  Bxe3 {[%clk 0:02:08]} 19. dxe3 {[%clk 0:00:49]}  Bxc4 {[%clk 0:02:05]} 20. bxc4 {[%clk 0:00:46]}  Nf7 {[%clk 0:02:04]} 21. c5 {[%clk 0:00:45]}  Rd7 {[%clk 0:02:00]} 22. Rd1 {[%clk 0:00:44]}  Rfd8 {[%clk 0:01:59]} 23. Rxd7 {[%clk 0:00:44]}  Rxd7 {[%clk 0:02:00]} 24. Bc3 {[%clk 0:00:41]}  h6 {[%clk 0:01:59]} 25. Qb5 {[%clk 0:00:40]}  Nfd8 {[%clk 0:01:57]} 26. Qc4+ {[%clk 0:00:38]}  Kf8 {[%clk 0:01:55]} 27. Kf3 {[%clk 0:00:34]}  Rf7+ {[%clk 0:01:54]} 28. Ke2 {[%clk 0:00:34]}  Rd7 {[%clk 0:01:53]} 29. Qb3 {[%clk 0:00:30]}  Rf7 {[%clk 0:01:46]} 30. Qb2 {[%clk 0:00:30]}  Re7 {[%clk 0:01:46]} 31. Qc1 {[%clk 0:00:29]}  Ke8 {[%clk 0:01:44]} 32. Qf1 {[%clk 0:00:29]}  Ne6 {[%clk 0:01:40]} 33. Bb2 {[%clk 0:00:26]}  Rf7 {[%clk 0:01:36]} 34. Qh3 {[%clk 0:00:25]}  Ke7 {[%clk 0:01:35]} 35. Qg4 {[%clk 0:00:21]}  Rf8 {[%clk 0:01:31]} 36. h4 {[%clk 0:00:21]}  Rf6 {[%clk 0:01:25]} 37. hxg5 {[%clk 0:00:20]}  hxg5 {[%clk 0:01:23]} 38. Qh3 {[%clk 0:00:20]}  Rh6 {[%clk 0:01:22]} 39. Qf5 {[%clk 0:00:19]}  g6 {[%clk 0:01:17]} 40. Qg4 {[%clk 0:00:16]}  Rh2+ {[%clk 0:01:16]} 41. Kd1 {[%clk 0:00:16]}  Rh7 {[%clk 0:01:10]} 42. Qf3 {[%clk 0:00:16]}  Rh2 {[%clk 0:01:04]} 43. Qf1 {[%clk 0:00:15]}  a6 {[%clk 0:00:58]} 44. Qg1 {[%clk 0:00:14]}  Rh3 {[%clk 0:00:57]} 45. Qg2 {[%clk 0:00:14]}  g4 {[%clk 0:00:56]} 46. Qg1 {[%clk 0:00:13]}  Ng5 {[%clk 0:00:56]} 47. Qg2 {[%clk 0:00:10]}  Nf3 {[%clk 0:00:56]} 48. c4 {[%clk 0:00:09]}  Rh2 {[%clk 0:00:54]} 49. Qf1 {[%clk 0:00:10]}  Rxb2 {[%clk 0:00:53]} 50. Qd3 {[%clk 0:00:10]}  Rd2+ {[%clk 0:00:53]} 51. Qxd2 {[%clk 0:00:10]}  Nxd2 {[%clk 0:00:54]} 52. Kxd2 {[%clk 0:00:11]}  Ke6 {[%clk 0:00:54]} 0-1


[Site "https://www.chess.com"]

[Event "Titled Tuesday Blitz July 05 Late 2022"]
[White "Kozin, Yuri"]
[Black "Goncalves, Davi Sulzbacher"]
[WhiteFideId "4129920"]
[BlackFideId "2154510"]
[WhiteElo "2541"]
[BlackElo "2107"]
[Result "0-1"]
[Round "09"]
[TimeControl "180+1"]
[Date "2022.07.06"]
[WhiteClock "0:00:09"]
[BlackClock "0:00:03"]

1. e4 {[%clk 0:03:00]}  c5 {[%clk 0:02:57]} 2. Nf3 {[%clk 0:03:00]}  d6 {[%clk 0:02:55]} 3. d4 {[%clk 0:03:00]}  cxd4 {[%clk 0:02:56]} 4. Nxd4 {[%clk 0:03:01]}  Nf6 {[%clk 0:02:57]} 5. Nc3 {[%clk 0:03:01]}  a6 {[%clk 0:02:58]} 6. Be3 {[%clk 0:03:01]}  e5 {[%clk 0:02:58]} 7. Nf3 {[%clk 0:03:01]}  Be7 {[%clk 0:02:58]} 8. Bc4 {[%clk 0:03:01]}  O-O {[%clk 0:02:57]} 9. O-O {[%clk 0:03:01]}  b5 {[%clk 0:02:57]} 10. Bd5 {[%clk 0:03:01]}  Nxd5 {[%clk 0:02:54]} 11. Qxd5 {[%clk 0:03:01]}  Qd7 {[%clk 0:02:15]} 12. Qxa8 {[%clk 0:02:53]}  Nc6 {[%clk 0:02:15]} 13. Nxe5 {[%clk 0:02:10]}  dxe5 {[%clk 0:01:34]} 14. Rad1 {[%clk 0:02:04]}  Qe6 {[%clk 0:01:33]} 15. Nd5 {[%clk 0:01:48]}  Bd8 {[%clk 0:01:13]} 16. Bc5 {[%clk 0:01:22]}  Re8 {[%clk 0:01:11]} 17. Nb4 {[%clk 0:01:18]}  Na5 {[%clk 0:00:27]} 18. Qd5 {[%clk 0:01:06]}  Qf6 {[%clk 0:00:27]} 19. Qd3 {[%clk 0:00:58]}  Be6 {[%clk 0:00:20]} 20. Nd5 {[%clk 0:00:55]}  Qg6 {[%clk 0:00:19]} 21. b3 {[%clk 0:00:44]}  Nc6 {[%clk 0:00:19]} 22. a4 {[%clk 0:00:40]}  bxa4 {[%clk 0:00:18]} 23. bxa4 {[%clk 0:00:35]}  a5 {[%clk 0:00:16]} 24. Kh1 {[%clk 0:00:29]}  h5 {[%clk 0:00:12]} 25. c3 {[%clk 0:00:24]}  Kh7 {[%clk 0:00:06]} 26. Be3 {[%clk 0:00:16]}  Ne7 {[%clk 0:00:03]} 27. Nxe7 {[%clk 0:00:16]}  Bxe7 {[%clk 0:00:03]} 28. f3 {[%clk 0:00:13]}  Rc8 {[%clk 0:00:04]} 29. Rfe1 {[%clk 0:00:11]}  Bb3 {[%clk 0:00:04]} 30. Ra1 {[%clk 0:00:09]}  Bc4 {[%clk 0:00:03]} 31. Qd2 {[%clk 0:00:09]}  Qe6 {[%clk 0:00:04]} 32. Rab1 {[%clk 0:00:09]}  h4 {[%clk 0:00:04]} 33. Bg5 {[%clk 0:00:09]}  f6 {[%clk 0:00:03]} 34. Bxh4 {[%clk 0:00:09]}  Rd8 {[%clk 0:00:03]} 35. Qe3 {[%clk 0:00:08]}  Qc6 {[%clk 0:00:03]} 36. Bg3 {[%clk 0:00:08]}  Bc5 {[%clk 0:00:03]} 37. Qc1 {[%clk 0:00:06]}  Qxa4 {[%clk 0:00:03]} 38. Ra1 {[%clk 0:00:05]}  Qb5 {[%clk 0:00:03]} 39. Qb1 {[%clk 0:00:04]}  Qc6 {[%clk 0:00:03]} 40. Qc2 {[%clk 0:00:03]}  Bd3 {[%clk 0:00:03]} 41. Qa2 {[%clk 0:00:03]}  Bb6 {[%clk 0:00:03]} 42. Qa4 {[%clk 0:00:03]}  Qxc3 {[%clk 0:00:03]} 43. Rec1 {[%clk 0:00:03]}  Qd2 {[%clk 0:00:03]} 44. Rd1 {[%clk 0:00:02]}  Qe3 {[%clk 0:00:03]} 45. Qc6 {[%clk 0:00:02]}  Bd4 {[%clk 0:00:03]} 46. Rac1 {[%clk 0:00:01]}  Be2 {[%clk 0:00:03]} 47. Re1 {[%clk 0:00:01]}  Bc3 {[%clk 0:00:04]} 48. Qe6 {[%clk 0:00:02]}  Bxe1 {[%clk 0:00:04]} 49. Rxe1 {[%clk 0:00:03]}  Rd1 {[%clk 0:00:02]} 50. Qh3+ {[%clk 0:00:03]}  Kg6 {[%clk 0:00:02]} 51. Qe6 {[%clk 0:00:04]}  Rxe1+ {[%clk 0:00:01]} 52. Bxe1 {[%clk 0:00:05]}  Bxf3 {[%clk 0:00:02]} 53. Qf5+ {[%clk 0:00:05]}  Kf7 {[%clk 0:00:02]} 54. gxf3 {[%clk 0:00:05]}  Qxe1+ {[%clk 0:00:02]} 55. Kg2 {[%clk 0:00:06]}  Qe2+ {[%clk 0:00:03]} 56. Kg3 {[%clk 0:00:07]}  Qe1+ {[%clk 0:00:03]} 57. Kg2 {[%clk 0:00:07]}  Qe2+ {[%clk 0:00:03]} 58. Kh3 {[%clk 0:00:08]}  Qb5 {[%clk 0:00:04]} 59. Qc8 {[%clk 0:00:07]}  a4 {[%clk 0:00:04]} 60. Qc7+ {[%clk 0:00:08]}  Kg6 {[%clk 0:00:05]} 61. Qc8 {[%clk 0:00:07]}  a3 {[%clk 0:00:05]} 62. Qa8 {[%clk 0:00:08]}  Qc5 {[%clk 0:00:05]} 63. Kg4 {[%clk 0:00:08]}  Qg1+ {[%clk 0:00:05]} 64. Kh3 {[%clk 0:00:08]}  Qf1+ {[%clk 0:00:05]} 65. Kg3 {[%clk 0:00:09]}  Qe1+ {[%clk 0:00:05]} 66. Kh3 {[%clk 0:00:09]}  Qe3 {[%clk 0:00:05]} 67. Kg2 {[%clk 0:00:09]}  Kg5 {[%clk 0:00:05]} 68. Qa7 {[%clk 0:00:09]}  Qxa7 {[%clk 0:00:03]} 0-1


[Site "https://www.chess.com"]

[Event "Titled Tuesday Blitz July 05 Late 2022"]
[White "Madaminov, Mukhiddin"]
[Black "Tica, Sven"]
[WhiteFideId "14210703"]
[BlackFideId "14526948"]
[WhiteElo "2011"]
[BlackElo "2346"]
[Result "1-0"]
[Round "09"]
[TimeControl "180+1"]
[Date "2022.07.05"]
[WhiteClock "0:00:46"]
[BlackClock "0:00:09"]

1. d4 {[%clk 0:03:00]}  g6 {[%clk 0:03:00]} 2. Nc3 {[%clk 0:03:00]}  Bg7 {[%clk 0:03:01]} 3. e4 {[%clk 0:03:00]}  a6 {[%clk 0:03:01]} 4. a4 {[%clk 0:02:59]}  d6 {[%clk 0:03:01]} 5. h3 {[%clk 0:02:58]}  Nd7 {[%clk 0:03:00]} 6. Nf3 {[%clk 0:02:58]}  b6 {[%clk 0:03:01]} 7. Bc4 {[%clk 0:02:57]}  e6 {[%clk 0:03:00]} 8. O-O {[%clk 0:02:57]}  Bb7 {[%clk 0:03:01]} 9. Re1 {[%clk 0:02:53]}  Ne7 {[%clk 0:03:00]} 10. Bf4 {[%clk 0:02:50]}  h6 {[%clk 0:02:58]} 11. Qd2 {[%clk 0:02:45]}  g5 {[%clk 0:02:50]} 12. Bg3 {[%clk 0:02:41]}  O-O {[%clk 0:02:47]} 13. Rad1 {[%clk 0:02:37]}  Ng6 {[%clk 0:02:45]} 14. Nh2 {[%clk 0:02:23]}  Kh8 {[%clk 0:02:37]} 15. Ng4 {[%clk 0:02:07]}  f5 {[%clk 0:02:30]} 16. exf5 {[%clk 0:02:02]}  exf5 {[%clk 0:02:31]} 17. Re6 {[%clk 0:01:53]}  Nf6 {[%clk 0:01:35]} 18. Nxf6 {[%clk 0:01:50]}  Rxf6 {[%clk 0:01:36]} 19. f3 {[%clk 0:01:44]}  Rxe6 {[%clk 0:01:29]} 20. Bxe6 {[%clk 0:01:45]}  Qf6 {[%clk 0:01:30]} 21. Bc4 {[%clk 0:01:38]}  Re8 {[%clk 0:01:23]} 22. Bf1 {[%clk 0:01:33]}  h5 {[%clk 0:01:06]} 23. Bf2 {[%clk 0:01:29]}  h4 {[%clk 0:01:04]} 24. Re1 {[%clk 0:01:28]}  Qf7 {[%clk 0:00:42]} 25. Rxe8+ {[%clk 0:01:25]}  Qxe8 {[%clk 0:00:43]} 26. Qxg5 {[%clk 0:01:25]}  Qf7 {[%clk 0:00:32]} 27. b3 {[%clk 0:01:11]}  Qf6 {[%clk 0:00:25]} 28. Qxf6 {[%clk 0:00:59]}  Bxf6 {[%clk 0:00:26]} 29. Bd3 {[%clk 0:00:59]}  Nf4 {[%clk 0:00:25]} 30. Bxf5 {[%clk 0:00:56]}  c5 {[%clk 0:00:26]} 31. Ne4 {[%clk 0:00:49]}  Bxd4 {[%clk 0:00:09]} 32. Bxd4+ {[%clk 0:00:46]} 1-0


[Site "https://www.chess.com"]

[Event "Titled Tuesday Blitz July 05 Late 2022"]
[White "Mei, Austin"]
[Black "Petrovic, Aleksa"]
[WhiteFideId "30948479"]
[BlackFideId "967629"]
[WhiteElo "1971"]
[BlackElo "2185"]
[Result "1-0"]
[Round "09"]
[TimeControl "180+1"]
[Date "2022.07.06"]
[WhiteClock "0:00:12"]
[BlackClock "0:00:02"]

1. e4 {[%clk 0:03:00]}  e6 {[%clk 0:02:58]} 2. d4 {[%clk 0:02:59]}  d5 {[%clk 0:02:59]} 3. e5 {[%clk 0:02:59]}  c5 {[%clk 0:02:58]} 4. c3 {[%clk 0:03:00]}  Qb6 {[%clk 0:02:58]} 5. Nf3 {[%clk 0:03:00]}  Nc6 {[%clk 0:02:59]} 6. Bd3 {[%clk 0:02:59]}  Bd7 {[%clk 0:02:55]} 7. dxc5 {[%clk 0:02:59]}  Bxc5 {[%clk 0:02:53]} 8. O-O {[%clk 0:02:59]}  Qc7 {[%clk 0:02:44]} 9. b4 {[%clk 0:02:58]}  Bb6 {[%clk 0:02:45]} 10. Bf4 {[%clk 0:02:52]}  a5 {[%clk 0:02:42]} 11. b5 {[%clk 0:02:51]}  Nce7 {[%clk 0:02:37]} 12. a4 {[%clk 0:02:51]}  Ng6 {[%clk 0:02:35]} 13. Bg3 {[%clk 0:02:51]}  Rc8 {[%clk 0:02:28]} 14. h4 {[%clk 0:02:51]}  Nh6 {[%clk 0:02:17]} 15. h5 {[%clk 0:02:50]}  Ne7 {[%clk 0:02:17]} 16. Nd4 {[%clk 0:02:45]}  Bxd4 {[%clk 0:02:11]} 17. cxd4 {[%clk 0:02:45]}  Nhf5 {[%clk 0:02:11]} 18. Qg4 {[%clk 0:02:36]}  h6 {[%clk 0:01:57]} 19. Ra2 {[%clk 0:02:35]}  Qb6 {[%clk 0:01:42]} 20. Bxf5 {[%clk 0:02:22]}  Nxf5 {[%clk 0:01:42]} 21. Rd1 {[%clk 0:02:15]}  Rc4 {[%clk 0:01:41]} 22. Rad2 {[%clk 0:02:00]}  Rxa4 {[%clk 0:01:37]} 23. Nc3 {[%clk 0:02:00]}  Rc4 {[%clk 0:01:36]} 24. Ne2 {[%clk 0:01:55]}  Bxb5 {[%clk 0:01:33]} 25. Nf4 {[%clk 0:01:53]}  Qc6 {[%clk 0:01:21]} 26. Kh2 {[%clk 0:01:43]}  a4 {[%clk 0:01:21]} 27. Ra1 {[%clk 0:01:25]}  Rc2 {[%clk 0:01:11]} 28. Qd1 {[%clk 0:01:16]}  Rxd2 {[%clk 0:01:06]} 29. Qxd2 {[%clk 0:01:17]}  O-O {[%clk 0:00:55]} 30. Rc1 {[%clk 0:01:17]}  Qa6 {[%clk 0:00:52]} 31. Qb4 {[%clk 0:01:12]}  a3 {[%clk 0:00:46]} 32. f3 {[%clk 0:00:56]}  a2 {[%clk 0:00:45]} 33. Ra1 {[%clk 0:00:56]}  Rc8 {[%clk 0:00:38]} 34. Bf2 {[%clk 0:00:56]}  Rc2 {[%clk 0:00:36]} 35. Kg1 {[%clk 0:00:52]}  Qc6 {[%clk 0:00:33]} 36. Qa3 {[%clk 0:00:44]}  Bc4 {[%clk 0:00:19]} 37. g4 {[%clk 0:00:44]}  Qb5 {[%clk 0:00:12]} 38. gxf5 {[%clk 0:00:19]}  Qb1+ {[%clk 0:00:12]} 39. Kg2 {[%clk 0:00:18]}  Qxa1 {[%clk 0:00:10]} 40. fxe6 {[%clk 0:00:17]}  Rxf2+ {[%clk 0:00:09]} 41. Kxf2 {[%clk 0:00:16]}  Qxd4+ {[%clk 0:00:09]} 42. Kg3 {[%clk 0:00:17]}  Qg1+ {[%clk 0:00:09]} 43. Kh4 {[%clk 0:00:17]}  Qg5+ {[%clk 0:00:07]} 44. Kh3 {[%clk 0:00:16]}  Bf1+ {[%clk 0:00:07]} 45. Kh2 {[%clk 0:00:15]}  Qxf4+ {[%clk 0:00:08]} 46. Kg1 {[%clk 0:00:16]}  Qg3+ {[%clk 0:00:08]} 47. Kxf1 {[%clk 0:00:16]}  a1=Q+ {[%clk 0:00:06]} 48. Qxa1 {[%clk 0:00:16]}  Qxf3+ {[%clk 0:00:06]} 49. Kg1 {[%clk 0:00:16]}  Qe3+ {[%clk 0:00:06]} 50. Kh1 {[%clk 0:00:17]}  Qh3+ {[%clk 0:00:05]} 51. Kg1 {[%clk 0:00:17]}  Qxe6 {[%clk 0:00:06]} 52. Qa8+ {[%clk 0:00:17]}  Kh7 {[%clk 0:00:06]} 53. Qxb7 {[%clk 0:00:18]}  d4 {[%clk 0:00:04]} 54. Qb1+ {[%clk 0:00:18]}  g6 {[%clk 0:00:04]} 55. Qe4 {[%clk 0:00:18]}  Kg7 {[%clk 0:00:04]} 56. Qxd4 {[%clk 0:00:18]}  gxh5 {[%clk 0:00:05]} 57. Kf2 {[%clk 0:00:18]}  Qf5+ {[%clk 0:00:05]} 58. Ke1 {[%clk 0:00:16]}  Qg4 {[%clk 0:00:05]} 59. Qd5 {[%clk 0:00:15]}  Qg3+ {[%clk 0:00:04]} 60. Kf1 {[%clk 0:00:15]}  h4 {[%clk 0:00:05]} 61. e6 {[%clk 0:00:15]}  Qf4+ {[%clk 0:00:04]} 62. Kg1 {[%clk 0:00:14]}  Qg5+ {[%clk 0:00:04]} 63. Qxg5+ {[%clk 0:00:13]}  hxg5 {[%clk 0:00:05]} 64. e7 {[%clk 0:00:14]}  f5 {[%clk 0:00:02]} 65. e8=Q {[%clk 0:00:15]}  Kf6 {[%clk 0:00:02]} 66. Qe2 {[%clk 0:00:14]}  Kg6 {[%clk 0:00:02]} 67. Kh2 {[%clk 0:00:14]}  g4 {[%clk 0:00:02]} 68. Qe6+ {[%clk 0:00:13]}  Kg5 {[%clk 0:00:03]} 69. Qe7+ {[%clk 0:00:13]}  Kh5 {[%clk 0:00:02]} 70. Qf6 {[%clk 0:00:12]}  g3+ {[%clk 0:00:02]} 71. Kh3 {[%clk 0:00:12]}  g2 {[%clk 0:00:02]} 72. Qxf5+ {[%clk 0:00:12]}  Kh6 {[%clk 0:00:02]} 73. Qg4 {[%clk 0:00:12]} 1-0


[Site "https://www.chess.com"]

[Event "Titled Tuesday Blitz July 05 Late 2022"]
[White "Noboa Silva, Kevin"]
[Black "D`Arruda, Ricardo D."]
[WhiteFideId "3618471"]
[BlackFideId "100692"]
[WhiteElo "2172"]
[BlackElo "2459"]
[Result "0-1"]
[Round "09"]
[TimeControl "180+1"]
[Date "2022.07.06"]
[WhiteClock "0:00:26"]
[BlackClock "0:00:20"]

1. e4 {[%clk 0:03:00]}  c5 {[%clk 0:02:57]} 2. c3 {[%clk 0:02:59]}  e6 {[%clk 0:02:55]} 3. d4 {[%clk 0:02:59]}  cxd4 {[%clk 0:02:54]} 4. cxd4 {[%clk 0:02:59]}  d5 {[%clk 0:02:54]} 5. exd5 {[%clk 0:02:59]}  exd5 {[%clk 0:02:53]} 6. Nf3 {[%clk 0:03:00]}  Bd6 {[%clk 0:02:52]} 7. Bb5+ {[%clk 0:03:00]}  Nc6 {[%clk 0:02:52]} 8. O-O {[%clk 0:03:00]}  Ne7 {[%clk 0:02:49]} 9. Nc3 {[%clk 0:02:59]}  O-O {[%clk 0:02:47]} 10. h3 {[%clk 0:02:59]}  Bf5 {[%clk 0:02:44]} 11. Re1 {[%clk 0:02:59]}  a6 {[%clk 0:02:39]} 12. Bd3 {[%clk 0:02:58]}  Qd7 {[%clk 0:02:35]} 13. Bg5 {[%clk 0:02:55]}  f6 {[%clk 0:02:34]} 14. Be3 {[%clk 0:02:51]}  Bxd3 {[%clk 0:02:30]} 15. Qxd3 {[%clk 0:02:51]}  Rfe8 {[%clk 0:02:29]} 16. Rad1 {[%clk 0:02:50]}  Rad8 {[%clk 0:02:28]} 17. a3 {[%clk 0:02:48]}  b5 {[%clk 0:02:18]} 18. Qb1 {[%clk 0:02:45]}  Na5 {[%clk 0:02:15]} 19. Bc1 {[%clk 0:02:40]}  Nc4 {[%clk 0:02:12]} 20. Qa2 {[%clk 0:02:35]}  Rc8 {[%clk 0:02:06]} 21. Re2 {[%clk 0:02:23]}  Kf8 {[%clk 0:01:58]} 22. Rde1 {[%clk 0:02:22]}  Nxa3 {[%clk 0:01:42]} 23. Nxd5 {[%clk 0:02:11]}  Nxd5 {[%clk 0:01:42]} 24. Rxe8+ {[%clk 0:02:08]}  Rxe8 {[%clk 0:01:41]} 25. Rxe8+ {[%clk 0:02:08]}  Kxe8 {[%clk 0:01:40]} 26. bxa3 {[%clk 0:02:08]}  Qc6 {[%clk 0:01:33]} 27. Bd2 {[%clk 0:02:06]}  Qc4 {[%clk 0:01:33]} 28. Qb1 {[%clk 0:02:06]}  g6 {[%clk 0:01:31]} 29. Qe4+ {[%clk 0:02:01]}  Kf7 {[%clk 0:01:30]} 30. Qh4 {[%clk 0:02:01]}  h5 {[%clk 0:01:25]} 31. Qe4 {[%clk 0:01:56]}  Bxa3 {[%clk 0:01:21]} 32. g4 {[%clk 0:01:56]}  hxg4 {[%clk 0:01:20]} 33. hxg4 {[%clk 0:01:56]}  Be7 {[%clk 0:01:09]} 34. g5 {[%clk 0:01:56]}  b4 {[%clk 0:01:06]} 35. gxf6 {[%clk 0:01:55]}  Bxf6 {[%clk 0:01:07]} 36. Bg5 {[%clk 0:01:54]}  Bg7 {[%clk 0:00:34]} 37. Bd2 {[%clk 0:01:41]}  b3 {[%clk 0:00:32]} 38. Ng5+ {[%clk 0:01:40]}  Kf8 {[%clk 0:00:27]} 39. Qxg6 {[%clk 0:01:34]}  Nc7 {[%clk 0:00:27]} 40. Nh7+ {[%clk 0:01:32]}  Kg8 {[%clk 0:00:26]} 41. Nf6+ {[%clk 0:01:27]}  Kf8 {[%clk 0:00:25]} 42. Nd7+ {[%clk 0:01:22]}  Kg8 {[%clk 0:00:24]} 43. Nf6+ {[%clk 0:00:55]}  Kf8 {[%clk 0:00:23]} 44. Bh6 {[%clk 0:00:54]}  Qf7 {[%clk 0:00:22]} 45. Nh7+ {[%clk 0:00:45]}  Kg8 {[%clk 0:00:22]} 46. Qxf7+ {[%clk 0:00:41]}  Kxf7 {[%clk 0:00:23]} 47. Ng5+ {[%clk 0:00:41]}  Kg6 {[%clk 0:00:23]} 48. Bxg7 {[%clk 0:00:41]}  Kxg5 {[%clk 0:00:23]} 49. d5 {[%clk 0:00:40]}  Nxd5 {[%clk 0:00:23]} 50. Kg2 {[%clk 0:00:39]}  a5 {[%clk 0:00:23]} 51. Kg3 {[%clk 0:00:38]}  a4 {[%clk 0:00:22]} 52. Bb2 {[%clk 0:00:37]}  Nb4 {[%clk 0:00:21]} 53. f4+ {[%clk 0:00:34]}  Kf5 {[%clk 0:00:21]} 54. Kf3 {[%clk 0:00:35]}  Nd3 {[%clk 0:00:21]} 55. Bc3 {[%clk 0:00:34]}  a3 {[%clk 0:00:21]} 56. Ke3 {[%clk 0:00:33]}  b2 {[%clk 0:00:21]} 57. Kxd3 {[%clk 0:00:30]}  b1=Q+ {[%clk 0:00:20]} 58. Kc4 {[%clk 0:00:30]}  a2 {[%clk 0:00:19]} 59. Kd5 {[%clk 0:00:29]}  Kxf4 {[%clk 0:00:19]} 60. Be5+ {[%clk 0:00:29]}  Kf5 {[%clk 0:00:19]} 61. Kd6 {[%clk 0:00:29]}  Qd3+ {[%clk 0:00:19]} 62. Ke7 {[%clk 0:00:29]}  Kxe5 {[%clk 0:00:19]} 63. Kf7 {[%clk 0:00:29]}  a1=Q {[%clk 0:00:20]} 64. Kg7 {[%clk 0:00:26]}  Qg1+ {[%clk 0:00:20]} 65. Kf7 {[%clk 0:00:26]}  Qd7+ {[%clk 0:00:20]} 66. Kf8 {[%clk 0:00:26]}  Qgg7# {[%clk 0:00:20]} 0-1


[Site "https://www.chess.com"]